bitfinex-derivatives/quotes_BTCF0:USTF0_20250630
["timestamp","ask_amount","ask_price","bid_price","bid_amount"]
[1751250668465,1.09177003,108700.0,108690.0,0.74228653]
[1751250670762,1.09177003,108700.0,108690.0,0.77478653]
[1751250672168,1.01840085,108700.0,108690.0,0.77478653]
[1751250672569,1.01840085,108700.0,108690.0,0.80498653]
[1751250679575,0.25794585,108700.0,108690.0,1.00621576]
[1751250679777,0.84527325,108700.0,108690.0,1.00621576]
[1751250681683,0.28723325,108700.0,108690.0,1.00621576]
[1751250681885,0.28623325,108700.0,108690.0,1.00721576]
[1751250682086,0.28523325,108700.0,108690.0,1.00721576]
[1751250682279,0.28523325,108700.0,108690.0,1.00821576]
[1751250687691,0.28523325,108700.0,108690.0,0.80698653]
[1751250687891,0.31523325,108700.0,108690.0,0.80698653]
[1751250688593,0.31523325,108700.0,108690.0,0.6057573]
[1751250688893,0.51646248,108700.0,108690.0,0.80698653]
[1751250689089,0.54836248,108700.0,108690.0,0.80698653]
[1751250689692,0.34713325,108700.0,108690.0,0.80698653]
[1751250690693,0.34813325,108700.0,108690.0,0.80598653]
[1751250690992,0.34913325,108700.0,108690.0,0.80498653]
[1751250691292,0.55036248,108700.0,108690.0,0.80498653]
[1751250693594,0.34913325,108700.0,108690.0,0.80498653]
[1751250694897,0.42250243,108700.0,108690.0,0.80498653]
[1751250695497,0.41970049,108700.0,108690.0,0.80498653]
[1751250703101,0.34633131,108700.0,108690.0,0.80498653]
[1751250708407,0.34633131,108700.0,108690.0,0.6037573]
[1751250708608,0.34633131,108700.0,108690.0,0.5735573]
[1751250708807,0.34633131,108700.0,108690.0,0.77478653]
[1751250713014,0.21765131,108700.0,108690.0,0.77478653]
[1751250713213,0.84227131,108700.0,108690.0,0.80518653]
[1751250713913,0.84227131,108700.0,108690.0,0.44438653]
[1751250714119,0.84227131,108700.0,108690.0,0.80518653]
[1751250718319,0.91564049,108700.0,108690.0,0.80518653]
[1751250721727,0.94614049,108700.0,108690.0,0.80518653]
[1751250722322,1.14736972,108700.0,108690.0,0.6039573]
[1751250722528,1.17786972,108700.0,108690.0,0.74228653]
[1751250722829,1.21086972,108700.0,108690.0,0.74228653]
[1751250723226,1.13750054,108700.0,108690.0,0.74228653]
[1751250723427,0.93627131,108700.0,108690.0,0.74228653]
[1751250723627,0.90577131,108700.0,108690.0,0.74228653]
[1751250723829,0.90577131,108700.0,108690.0,0.80478653]
[1751250724427,0.90577131,108700.0,108690.0,0.6035573]
[1751250724632,0.90577131,108700.0,108690.0,0.80478653]
[1751250727733,0.87277131,108700.0,108690.0,0.80478653]
[1751250731132,0.87277131,108700.0,108690.0,0.6035573]
[1751250731335,0.87277131,108700.0,108690.0,0.80478653]
[1751250733135,0.94614049,108700.0,108690.0,0.80478653]
[1751250735532,1.14736972,108700.0,108690.0,0.80478653]
[1751250736737,0.97674049,108700.0,108690.0,0.80478653]
[1751250742940,0.97674049,108700.0,108690.0,0.44398653]
[1751250743143,0.90337131,108700.0,108690.0,0.80478653]
[1751250743439,0.99512217,108700.0,108690.0,0.80478653]
[1751250754544,0.90337131,108700.0,108690.0,0.80478653]
[1751250760945,0.72562741,108700.0,108690.0,0.80478653]
[1751250761248,0.00860741,108700.0,108690.0,1.00601576]
[1751250762154,0.35014876,108710.0,108700.0,0.1471439]
[1751250762355,0.76065586,108710.0,108700.0,1.00390236]
[1751250763354,0.90778626,108710.0,108700.0,1.00390236]
[1751250764554,0.90878626,108710.0,108700.0,1.00390236]
[1751250765857,0.91807629,108710.0,108700.0,1.00390236]
[1751250766063,0.91807629,108710.0,108700.0,0.64310236]
[1751250766255,0.91807629,108710.0,108700.0,1.00390236]
[1751250766256,0.77094589,108710.0,108700.0,1.00390236]
[1751250766456,0.91807619,108710.0,108700.0,1.00390236]
[1751250766657,0.91907619,108710.0,108700.0,1.00390236]
[1751250767959,0.77194589,108710.0,108700.0,1.00390236]
[1751250768158,0.21430589,108710.0,108700.0,1.00390236]
[1751250768360,0.77186589,108710.0,108700.0,1.00390236]
[1751250768660,0.91899629,108710.0,108700.0,1.00390236]
[1751250770260,0.84554043,108710.0,108700.0,1.00390236]
[1751250771658,0.003,108710.0,108700.0,1.00390236]
[1751250771961,0.003,108710.0,108700.0,1.20513159]
[1751250772161,0.003,108710.0,108700.0,1.00390236]
[1751250772554,0.003,108710.0,108700.0,1.20513159]
[1751250779670,0.003,108710.0,108700.0,1.21456151]
[1751250780272,0.003,108710.0,108700.0,1.20513159]
[1751250782873,0.003,108710.0,108700.0,1.00390236]
[1751250783072,0.003,108710.0,108700.0,1.56130236]
[1751250783276,0.003,108710.0,108700.0,1.76253159]
[1751250783577,0.003,108710.0,108700.0,1.56130236]
[1751250785672,0.003,108710.0,108700.0,1.76253159]
[1751250786478,0.003,108710.0,108700.0,2.12333159]
[1751250797589,0.003,108710.0,108700.0,1.92210236]
[1751250797788,0.0662,108710.0,108700.0,1.92210236]
[1751250797990,0.0662,108710.0,108700.0,1.82848236]
[1751250798289,0.44485963,108710.0,108700.0,0.8687439]
[1751250798491,0.0965,108710.0,108700.0,1.27120236]
[1751250798688,0.0965,108710.0,108700.0,1.28649925]
[1751250799591,0.0662,108710.0,108700.0,1.38139925]
[1751250800792,0.0662,108710.0,108700.0,1.40898112]
[1751250803094,0.0345,108710.0,108700.0,1.40898112]
[1751250806593,0.003,108710.0,108700.0,1.61021035]
[1751250807095,0.003,108710.0,108700.0,1.40898112]
[1751250807590,0.003,108710.0,108700.0,1.00652266]
[1751250807790,0.003,108710.0,108700.0,1.40898112]
[1751250816897,0.0349,108710.0,108700.0,1.40898112]
[1751250824508,0.0349,108710.0,108700.0,1.38139925]
[1751250831816,0.003,108710.0,108700.0,1.38139925]
[1751250834519,0.003,108710.0,108700.0,1.40898112]
[1751250837117,0.003,108710.0,108700.0,1.00652266]
[1751250837335,0.003,108710.0,108700.0,1.40898112]
[1751250843040,0.003,108710.0,108700.0,0.68738112]
[1751250843243,0.003,108710.0,108700.0,1.40898112]
[1751250854250,0.003,108710.0,108700.0,0.68738112]
[1751250854450,0.003,108710.0,108700.0,1.40898112]
[1751250859157,0.003,108710.0,108700.0,0.68738112]
[1751250859359,0.003,108710.0,108700.0,1.40898112]
[1751250861352,0.003,108710.0,108700.0,1.96606112]
[1751250864459,0.003,108710.0,108700.0,1.93847925]
[1751250868161,0.20173586,108720.0,108710.0,0.1471301]
[1751250868366,0.07345586,108720.0,108710.0,1.00748856]
[1751250869266,0.07545586,108720.0,108710.0,1.00748856]
[1751250869566,0.07745586,108720.0,108710.0,1.00748856]
[1751250874570,0.004,108720.0,108710.0,1.00748856]
[1751250881371,0.004,108720.0,108710.0,0.6050301]
[1751250881672,0.004,108720.0,108710.0,1.00748856]
[1751250882574,0.1843166,108720.0,108710.0,0.80625933]
[1751250882781,0.2168166,108720.0,108710.0,0.80625933]
[1751250883181,0.2168166,108720.0,108710.0,1.00748856]
[1751250884381,0.2168166,108720.0,108710.0,0.80625933]
[1751250884584,0.29027246,108720.0,108710.0,0.80625933]
[1751250884972,0.29027246,108720.0,108710.0,1.00748856]
[1751250886884,0.29027246,108720.0,108710.0,0.80625933]
[1751250893282,0.14315586,108720.0,108710.0,1.00748856]
[1751250894588,0.0697,108720.0,108710.0,1.00748856]
[1751250895488,0.0372,108720.0,108710.0,1.00748856]
[1751250899786,0.004,108720.0,108710.0,1.00748856]
[1751250914700,0.07745586,108720.0,108710.0,1.00748856]
[1751250916608,0.07745586,108720.0,108710.0,1.36828856]
[1751250917406,0.07745586,108720.0,108710.0,1.37462946]
[1751250918909,0.07745586,108720.0,108710.0,0.65302946]
[1751250919111,0.07745586,108720.0,108710.0,1.37462946]
[1751250919509,0.07745586,108720.0,108710.0,1.36828856]
[1751250920210,0.004,108720.0,108710.0,1.36828856]
[1751250927110,0.0347,108720.0,108710.0,1.36828856]
[1751250928210,0.0347,108720.0,108710.0,1.92512856]
[1751250928713,0.38304583,108720.0,108710.0,0.34835933]
[1751250929016,0.44564583,108720.0,108710.0,0.34835933]
[1751250933220,0.29852923,108720.0,108710.0,0.34835933]
[1751250935522,0.0973,108720.0,108710.0,0.34835933]
[1751250937618,0.0973,108720.0,108710.0,0.54958856]
[1751250940312,0.0973,108720.0,108710.0,0.91038856]
[1751250942225,0.0973,108720.0,108710.0,0.94188856]
[1751250944615,0.0973,108720.0,108710.0,0.97498856]
[1751250945826,0.0665,108720.0,108710.0,0.97498856]
[1751250946026,0.0665,108720.0,108710.0,1.00638856]
[1751250950228,0.0665,108720.0,108710.0,0.64558856]
[1751250950528,0.0665,108720.0,108710.0,1.00638856]
[1751250951628,0.0665,108720.0,108710.0,0.80515933]
[1751250954038,0.0347,108720.0,108710.0,1.00638856]
[1751250954733,0.10815586,108720.0,108710.0,1.00638856]
[1751250955036,0.23627586,108720.0,108710.0,1.00638856]
[1751250955839,0.23627586,108720.0,108710.0,0.80515933]
[1751250956338,0.16282,108720.0,108710.0,0.80515933]
[1751250957234,0.3099367,108720.0,108710.0,0.6039301]
[1751250957537,0.16282,108720.0,108710.0,0.80515933]
[1751250958340,0.3099367,108720.0,108710.0,0.80515933]
[1751250960338,0.3099367,108720.0,108710.0,0.44435933]
[1751250960539,0.51116593,108720.0,108710.0,0.44435933]
[1751250960737,0.61652179,108720.0,108710.0,0.34835933]
[1751250960937,0.64652179,108720.0,108710.0,0.34835933]
[1751250963745,0.77429516,108720.0,108710.0,0.1471301]
[1751250964147,0.84775102,108720.0,108710.0,0.34835933]
[1751250964641,0.77429516,108720.0,108710.0,0.34835933]
[1751250966047,0.57306593,108720.0,108710.0,0.34835933]
[1751250967344,0.64746342,108720.0,108710.0,0.34835933]
[1751250967847,0.44623419,108720.0,108710.0,0.34835933]
[1751250968042,0.64746342,108720.0,108710.0,0.34835933]
[1751250972251,0.84869265,108720.0,108710.0,0.34835933]
[1751250974451,0.64746342,108720.0,108710.0,0.34835933]
[1751250974648,0.61746342,108720.0,108710.0,0.41145933]
[1751250975245,0.69091928,108720.0,108710.0,0.41145933]
[1751250975446,0.69091928,108720.0,108710.0,0.44405933]
[1751250984559,0.69091928,108720.0,108710.0,0.80485933]
[1751250989665,0.48969005,108720.0,108710.0,0.80485933]
[1751250989866,0.69091928,108720.0,108710.0,0.80485933]
[1751250992871,0.69091928,108720.0,108710.0,0.6036301]
[1751250993066,0.69091928,108720.0,108710.0,0.80485933]
[1751251003972,0.69091928,108720.0,108710.0,0.44405933]
[1751251004173,0.69091928,108720.0,108710.0,0.80485933]
[1751251004574,0.70921428,108720.0,108710.0,0.80485933]
[1751251004873,0.70921428,108720.0,108710.0,0.6036301]
[1751251005075,0.70921428,108720.0,108710.0,0.80485933]
[1751251007074,0.70921428,108720.0,108710.0,0.44405933]
[1751251007275,0.70921428,108720.0,108710.0,0.80485933]
[1751251012076,0.70921428,108720.0,108710.0,0.6036301]
[1751251012278,0.70921428,108720.0,108710.0,0.80485933]
[1751251014578,0.78282149,108720.0,108710.0,0.80485933]
[1751251014782,0.69107063,108720.0,108710.0,0.80485933]
[1751251027188,0.4898414,108720.0,108710.0,0.80485933]
[1751251027388,0.69107063,108720.0,108710.0,0.80485933]
[1751251028291,0.69107063,108720.0,108710.0,0.6036301]
[1751251028490,0.69107063,108720.0,108710.0,0.80485933]
[1751251029686,0.69107063,108720.0,108710.0,0.6036301]
[1751251029894,0.69107063,108720.0,108710.0,0.44405933]
[1751251030092,0.69107063,108720.0,108710.0,0.41145933]
[1751251030294,0.72297063,108720.0,108710.0,0.41145933]
[1751251030590,0.72297063,108720.0,108710.0,0.38125933]
[1751251034299,0.5217414,108720.0,108710.0,0.38125933]
[1751251034503,0.5217414,108720.0,108710.0,0.41445933]
[1751251034504,0.72297063,108720.0,108710.0,0.41445933]
[1751251034706,0.64936342,108720.0,108710.0,0.41445933]
[1751251035002,0.74111428,108720.0,108710.0,0.41445933]
[1751251038608,0.74111428,108720.0,108710.0,0.2132301]
[1751251038799,0.74111428,108720.0,108710.0,0.41445933]
[1751251039600,0.74111428,108720.0,108710.0,0.38125933]
[1751251039906,0.64936342,108720.0,108710.0,0.38125933]
[1751251040304,0.85059265,108720.0,108710.0,0.1471301]
[1751251040503,0.85059265,108720.0,108710.0,0.34835933]
[1751251042509,0.64936342,108720.0,108710.0,0.34835933]
[1751251043015,0.64936342,108720.0,108710.0,0.1471301]
[1751251043310,0.64936342,108720.0,108710.0,0.34835933]
[1751251044209,0.74111428,108720.0,108710.0,0.34835933]
[1751251044711,0.81472715,108720.0,108710.0,0.34835933]
[1751251044905,0.72297629,108720.0,108710.0,0.34835933]
[1751251046813,0.72297629,108720.0,108710.0,0.1471301]
[1751251047112,0.92420552,108720.0,108710.0,0.34835933]
[1751251047411,1.28500552,108720.0,108710.0,0.34835933]
[1751251047612,0.1471302,108710.0,108700.0,0.81343173]
[1751251047911,0.96785943,108710.0,108700.0,0.81343173]
[1751251048311,0.96785943,108710.0,108700.0,0.84543173]
[1751251048815,0.96985943,108710.0,108700.0,0.84543173]
[1751251049312,0.97185943,108710.0,108700.0,0.84543173]
[1751251052013,0.7706302,108710.0,108700.0,0.84543173]
[1751251052208,0.97185943,108710.0,108700.0,0.6442025]
[1751251052408,0.97185943,108710.0,108700.0,0.87543173]
[1751251053115,0.97185943,108710.0,108700.0,0.6122025]
[1751251053317,0.97185943,108710.0,108700.0,0.78273173]
[1751251054816,0.7706302,108710.0,108700.0,0.79764819]
[1751251055019,0.97185943,108710.0,108700.0,0.79764819]
[1751251055214,0.97185943,108710.0,108700.0,0.82824819]
[1751251055820,0.97185943,108710.0,108700.0,0.85904819]
[1751251058116,0.97185943,108710.0,108700.0,0.89124819]
[1751251058316,1.0454723,108710.0,108700.0,0.89124819]
[1751251060317,0.97185943,108710.0,108700.0,0.89124819]
[1751251060519,0.97185943,108710.0,108700.0,1.09247742]
[1751251060720,0.97185943,108710.0,108700.0,0.89124819]
[1751251063926,0.7706302,108710.0,108700.0,0.89124819]
[1751251064128,0.97185943,108710.0,108700.0,0.89124819]
[1751251064328,0.97185943,108710.0,108700.0,0.69001896]
[1751251064529,0.97185943,108710.0,108700.0,0.89124819]
[1751251065826,1.17308866,108710.0,108700.0,0.1471437]
[1751251066030,0.1471437,108700.0,108690.0,0.1365757]
[1751251066236,1.06958216,108700.0,108690.0,0.2837221]
[1751251066530,1.13288216,108700.0,108690.0,0.2837221]
[1751251067427,1.13288216,108700.0,108690.0,0.45385133]
[1751251067818,1.13288216,108700.0,108690.0,0.1839334]
[1751251068027,0.1471572,108690.0,108680.0,0.2167589]
[1751251068229,0.96856643,108690.0,108680.0,0.2167589]
[1751251068626,0.96856643,108690.0,108680.0,0.41798813]
[1751251069130,0.96856643,108690.0,108680.0,0.41898813]
[1751251069630,0.96856643,108690.0,108680.0,0.42098813]
[1751251070633,0.96856643,108690.0,108680.0,0.45178813]
[1751251071734,0.96856643,108690.0,108680.0,0.48188813]
[1751251073035,0.93736643,108690.0,108680.0,0.48188813]
[1751251073535,0.93736643,108690.0,108680.0,0.68311736]
[1751251077540,0.93736643,108690.0,108680.0,0.2806589]
[1751251077835,1.29816643,108690.0,108680.0,0.003]
[1751251078039,1.1295372,108690.0,108680.0,0.1501708]
[1751251078239,1.33076643,108690.0,108680.0,0.1501708]
[1751251079447,1.33076643,108690.0,108680.0,0.35140003]
[1751251084146,1.36326643,108690.0,108680.0,0.35140003]
[1751251085148,1.36326643,108690.0,108680.0,0.36651937]
[1751251088352,1.2256172,108690.0,108680.0,0.5677486]
[1751251088551,0.86872643,108690.0,108680.0,0.6634486]
[1751251088741,1.42680643,108690.0,108680.0,0.6634486]
[1751251088944,1.42680643,108690.0,108680.0,0.46221937]
[1751251089246,1.42680643,108690.0,108680.0,0.6634486]
[1751251090546,1.2255772,108690.0,108680.0,0.6634486]
[1751251090849,1.42680643,108690.0,108680.0,0.46221937]
[1751251091652,1.42680643,108690.0,108680.0,0.26099014]
[1751251091950,1.42680643,108690.0,108680.0,0.46221937]
[1751251092151,1.42716643,108690.0,108680.0,0.46221937]
[1751251092754,0.73988643,108690.0,108680.0,0.46221937]
[1751251092952,1.42716643,108690.0,108680.0,0.46221937]
[1751251093154,1.2259372,108690.0,108680.0,0.46221937]
[1751251093452,1.42716643,108690.0,108680.0,0.46221937]
[1751251095051,1.45716643,108690.0,108680.0,0.46221937]
[1751251095254,1.48866643,108690.0,108680.0,0.46221937]
[1751251095748,1.48866643,108690.0,108680.0,0.16529014]
[1751251095949,1.76350853,108690.0,108680.0,0.16529014]
[1751251097352,1.76350853,108690.0,108680.0,0.01811934]
[1751251097553,1.76350853,108690.0,108680.0,0.16529014]
[1751251097755,1.76350853,108690.0,108680.0,0.1501708]
[1751251097954,1.76350853,108690.0,108680.0,0.1491708]
[1751251098358,1.76350853,108690.0,108680.0,0.002]
[1751251099155,0.1471708,108680.0,108670.0,0.14810457]
[1751251099361,0.97352926,108680.0,108670.0,0.14810457]
[1751251100255,0.97352926,108680.0,108670.0,0.00092017]
[1751251101064,0.97352926,108680.0,108670.0,0.14810457]
[1751251102160,0.97352926,108680.0,108670.0,0.00092017]
[1751251102748,0.97852926,108680.0,108670.0,0.00092017]
[1751251102954,0.97852926,108680.0,108670.0,0.14810457]
[1751251104362,0.98152926,108680.0,108670.0,0.14810457]
[1751251106658,1.05514213,108680.0,108670.0,0.14810457]
[1751251107364,0.65268367,108680.0,108670.0,0.3493338]
[1751251107564,0.58958367,108680.0,108670.0,0.3493338]
[1751251107754,0.5159708,108680.0,108670.0,0.4111338]
[1751251108066,1.2040908,108680.0,108670.0,0.4111338]
[1751251109869,1.2040908,108680.0,108670.0,0.41115208]
[1751251111363,0.5159708,108680.0,108670.0,0.41115208]
[1751251111570,1.2040908,108680.0,108670.0,0.41115208]
[1751251113171,1.27770367,108680.0,108670.0,0.41115208]
[1751251113777,1.2040908,108680.0,108670.0,0.41115208]
[1751251117279,1.2040908,108680.0,108670.0,0.20990457]
[1751251118379,1.2040908,108680.0,108670.0,0.41115208]
[1751251118580,1.27770367,108680.0,108670.0,0.41115208]
[1751251121783,1.30860367,108680.0,108670.0,0.41115208]
[1751251121984,1.50985118,108680.0,108670.0,0.20990457]
[1751251122281,1.54245118,108680.0,108670.0,0.20990457]
[1751251123178,1.34120367,108680.0,108670.0,0.20990457]
[1751251123786,1.34120367,108680.0,108670.0,0.14810457]
[1751251124477,1.54245118,108680.0,108670.0,0.14810457]
[1751251124683,1.57515118,108680.0,108670.0,0.14810457]
[1751251126583,1.57515118,108680.0,108670.0,0.00092017]
[1751251126784,1.50153831,108680.0,108670.0,0.14810457]
[1751251127175,1.50153831,108680.0,108670.0,0.00092017]
[1751251129784,0.1472115,108650.0,108640.0,0.00092043]
[1751251129992,0.0368072,108640.0,108620.0,0.74844583]
[1751251130287,0.8353586,108630.0,108620.0,0.88996376]
[1751251130486,0.8353586,108630.0,108620.0,0.5295344]
[1751251130685,0.86478028,108630.0,108620.0,0.5295344]
[1751251131087,1.22558028,108630.0,108620.0,0.32828689]
[1751251131784,1.22558028,108630.0,108620.0,0.3140627]
[1751251132878,1.25618028,108630.0,108620.0,0.3180627]
[1751251133080,1.25618028,108630.0,108620.0,0.3230627]
[1751251134701,0.85739177,108630.0,108620.0,0.52431021]
[1751251135789,0.85739177,108630.0,108620.0,0.53840952]
[1751251137797,0.85739177,108630.0,108620.0,0.52431021]
[1751251139998,0.71027337,108630.0,108620.0,0.52431021]
[1751251140195,0.02159337,108630.0,108620.0,0.52431021]
[1751251140502,0.85751177,108630.0,108620.0,0.52431021]
[1751251141807,1.05875928,108630.0,108620.0,0.2610627]
[1751251141999,1.12015928,108630.0,108620.0,0.2610627]
[1751251143100,1.12015928,108630.0,108620.0,0.2298627]
[1751251143398,1.15045928,108630.0,108620.0,0.2298627]
[1751251143999,1.51125928,108630.0,108620.0,0.2298627]
[1751251145096,1.51125928,108630.0,108620.0,0.009]
[1751251145292,1.71250679,108630.0,108620.0,0.009]
[1751251145498,1.81406077,108630.0,108620.0,0.009]
[1751251145794,1.61281326,108630.0,108620.0,0.009]
[1751251146394,1.61281326,108630.0,108620.0,0.007]
[1751251146588,1.61281326,108630.0,108620.0,0.005]
[1751251147301,1.81406077,108630.0,108620.0,0.005]
[1751251147502,1.61281326,108630.0,108620.0,0.005]
[1751251147800,1.81406077,108630.0,108620.0,0.005]
[1751251148698,0.147252,108620.0,108610.0,0.14818548]
[1751251148902,0.79699288,108620.0,108610.0,0.14818548]
[1751251149401,0.79699288,108620.0,108610.0,0.00092068]
[1751251150201,0.79699288,108620.0,108610.0,0.00392068]
[1751251150502,0.79699288,108620.0,108610.0,0.00592068]
[1751251156006,1.48567288,108620.0,108610.0,0.00592068]
[1751251156304,1.48579288,108620.0,108610.0,0.15318618]
[1751251158607,1.58773444,108620.0,108610.0,0.00592068]
[1751251158796,1.02833444,108620.0,108610.0,0.00592068]
[1751251158995,1.58793444,108620.0,108610.0,0.00592068]
[1751251159602,0.89893444,108620.0,108610.0,0.15018618]
[1751251159809,1.48599288,108620.0,108610.0,0.14818618]
[1751251160308,0.79699288,108620.0,108610.0,0.14818618]
[1751251160509,1.48591288,108620.0,108610.0,0.00092068]
[1751251161810,1.28466537,108620.0,108610.0,0.00092068]
[1751251162108,1.48591288,108620.0,108610.0,0.14818618]
[1751251163712,1.48591288,108620.0,108610.0,0.00092068]
[1751251168120,0.79699288,108620.0,108610.0,0.14818618]
[1751251168322,1.48543288,108620.0,108610.0,0.14818618]
[1751251172123,1.55904383,108620.0,108610.0,0.14818618]
[1751251172429,1.91984383,108620.0,108610.0,0.00092068]
[1751251173020,1.91984383,108620.0,108610.0,0.14818618]
[1751251175126,1.84623288,108620.0,108610.0,0.14818618]
[1751251175327,1.84623288,108620.0,108610.0,0.21088618]
[1751251177127,1.15779288,108620.0,108610.0,0.21088618]
[1751251177328,1.90456374,108620.0,108610.0,0.21088618]
[1751251177532,1.90456374,108620.0,108610.0,0.24088618]
[1751251179323,1.93476374,108620.0,108610.0,0.24088618]
[1751251184233,1.21644374,108620.0,108610.0,0.24088618]
[1751251184431,1.90428374,108620.0,108610.0,0.24088618]
[1751251184828,1.97794194,108620.0,108610.0,0.24088618]
[1751251185028,1.88619108,108620.0,108610.0,0.24088618]
[1751251186430,1.8861869,108620.0,108610.0,0.24088618]
[1751251186631,1.9169869,108620.0,108610.0,0.24088618]
[1751251190042,1.1983469,108620.0,108610.0,0.24088618]
[1751251190238,1.57808537,108620.0,108610.0,0.44213369]
[1751251192839,1.65173939,108620.0,108610.0,0.44213369]
[1751251193241,1.57808537,108620.0,108610.0,0.44213369]
[1751251195149,1.57808537,108620.0,108610.0,0.24088618]
[1751251197047,1.21728537,108620.0,108610.0,0.24088618]
[1751251199751,1.41877425,108620.0,108610.0,0.44237506]
[1751251203857,1.41877425,108620.0,108610.0,0.24088618]
[1751251204055,1.65176313,108620.0,108610.0,0.24088618]
[1751251204556,1.65176313,108620.0,108610.0,0.44237506]
[1751251204857,1.68376313,108620.0,108610.0,0.44237506]
[1751251206456,1.68376313,108620.0,108610.0,0.24088618]
[1751251206859,1.68376313,108620.0,108610.0,0.44237506]
[1751251212063,1.28078537,108620.0,108610.0,0.44237506]
[1751251212263,1.48227425,108620.0,108610.0,0.44237506]
[1751251215065,1.55592827,108620.0,108610.0,0.44237506]
[1751251217766,1.55592827,108620.0,108610.0,0.24088618]
[1751251217969,1.55592827,108620.0,108610.0,0.41237506]
[1751251218169,1.58592827,108620.0,108610.0,0.41237506]
[1751251219478,1.58488827,108620.0,108610.0,0.41237506]
[1751251221668,1.38339939,108620.0,108610.0,0.41237506]
[1751251221873,1.55488827,108620.0,108610.0,0.21088618]
[1751251222074,1.55488827,108620.0,108610.0,0.41237506]
[1751251224275,1.55488827,108620.0,108610.0,0.44277506]
[1751251225072,1.48123425,108620.0,108610.0,0.44277506]
[1751251226574,0.79463425,108620.0,108610.0,0.44277506]
[1751251226774,1.48127425,108620.0,108610.0,0.44277506]
[1751251230076,1.48127425,108620.0,108610.0,0.24128618]
[1751251230278,1.48127425,108620.0,108610.0,0.44277506]
[1751251231275,1.68276313,108620.0,108610.0,0.44277506]
[1751251231677,1.31198537,108620.0,108610.0,0.44277506]
[1751251231976,0.95547425,108620.0,108610.0,0.44277506]
[1751251232177,1.24782537,108620.0,108610.0,0.44277506]
[1751251232772,0.70843337,108620.0,108610.0,0.64426394]
[1751251232974,0.85588537,108620.0,108610.0,0.44277506]
[1751251233277,0.85588537,108620.0,108610.0,0.64426394]
[1751251233777,0.85588537,108620.0,108610.0,0.44277506]
[1751251235379,0.70863337,108620.0,108610.0,0.44277506]
[1751251237778,0.85588537,108620.0,108610.0,0.24128618]
[1751251238079,1.05737425,108620.0,108610.0,0.44277506]
[1751251239478,0.85588537,108620.0,108610.0,0.44277506]
[1751251241181,1.05737425,108620.0,108610.0,0.44277506]
[1751251246598,0.15011337,108620.0,108610.0,0.44277506]
[1751251246800,0.70871337,108620.0,108610.0,0.44277506]
[1751251248493,0.85596537,108620.0,108610.0,0.44277506]
[1751251249899,0.85596537,108620.0,108610.0,0.24128618]
[1751251250099,0.85596537,108620.0,108610.0,0.44277506]
[1751251250300,1.05745425,108620.0,108610.0,0.44277506]
[1751251252504,1.05745425,108620.0,108610.0,0.24128618]
[1751251252705,1.08745425,108620.0,108610.0,0.44277506]
[1751251258111,1.12065425,108620.0,108610.0,0.44277506]
[1751251264519,0.97340225,108620.0,108610.0,0.44277506]
[1751251264921,0.77191337,108620.0,108610.0,0.44277506]
[1751251265110,0.97340225,108620.0,108610.0,0.44277506]
[1751251270022,0.77191337,108620.0,108610.0,0.44277506]
[1751251276127,0.77191337,108620.0,108610.0,0.24128618]
[1751251276433,0.97340225,108620.0,108610.0,0.44277506]
[1751251278828,0.97340225,108620.0,108610.0,0.24128618]
[1751251279019,0.97340225,108620.0,108610.0,0.44277506]
[1751251279315,1.12065425,108620.0,108610.0,0.44277506]
[1751251282427,1.12065425,108620.0,108610.0,0.24128618]
[1751251282630,1.12065425,108620.0,108610.0,0.44277506]
[1751251284528,0.97340225,108620.0,108610.0,0.44277506]
[1751251286430,0.77191337,108620.0,108610.0,0.44277506]
[1751251286731,0.97340225,108620.0,108610.0,0.44277506]
[1751251288231,1.12065425,108620.0,108610.0,0.44277506]
[1751251289630,0.97340225,108620.0,108610.0,0.44277506]
[1751251289930,1.12065415,108620.0,108610.0,0.43782881]
[1751251291231,1.12065415,108620.0,108610.0,0.23633993]
[1751251291431,1.12065415,108620.0,108610.0,0.43782881]
[1751251295634,0.97340225,108620.0,108610.0,0.43782881]
[1751251299132,0.77191337,108620.0,108610.0,0.43782881]
[1751251299338,0.97340225,108620.0,108610.0,0.43782881]
[1751251306038,1.48145425,108620.0,108610.0,0.43782881]
[1751251306744,1.33420225,108620.0,108610.0,0.43782881]
[1751251310757,1.48145425,108620.0,108610.0,0.34472881]
[1751251310960,1.51305425,108620.0,108610.0,0.35912009]
[1751251313862,1.16431337,108620.0,108610.0,0.35912009]
[1751251314158,1.36580225,108620.0,108610.0,0.42532009]
[1751251317063,1.36580225,108620.0,108610.0,0.22383121]
[1751251317362,1.51305425,108620.0,108610.0,0.42532009]
[1751251318763,1.36580225,108620.0,108610.0,0.42532009]
[1751251320366,1.36580225,108620.0,108610.0,0.41092881]
[1751251320865,1.51305425,108620.0,108610.0,0.41092881]
[1751251324570,1.51305425,108620.0,108610.0,0.20943993]
[1751251324870,1.51305425,108620.0,108610.0,0.41092881]
[1751251327872,1.31156537,108620.0,108610.0,0.41092881]
[1751251328074,1.51305425,108620.0,108610.0,0.41092881]
[1751251328677,1.51305425,108620.0,108610.0,0.20943993]
[1751251328876,1.51305425,108620.0,108610.0,0.41092881]
[1751251329677,1.31156537,108620.0,108610.0,0.41092881]
[1751251329876,1.51305425,108620.0,108610.0,0.41092881]
[1751251330377,1.31156537,108620.0,108610.0,0.41092881]
[1751251330579,1.51305425,108620.0,108610.0,0.41092881]
[1751251331877,1.31156537,108620.0,108610.0,0.41092881]
[1751251332076,1.51305425,108620.0,108610.0,0.41092881]
[1751251332878,1.31156537,108620.0,108610.0,0.41092881]
[1751251333077,1.51305425,108620.0,108610.0,0.41092881]
[1751251333377,1.31156537,108620.0,108610.0,0.41092881]
[1751251333565,1.51305425,108620.0,108610.0,0.41092881]
[1751251333976,1.31156537,108620.0,108610.0,0.41092881]
[1751251334177,1.51305425,108620.0,108610.0,0.41092881]
[1751251334878,0.95076537,108620.0,108610.0,0.41092881]
[1751251335177,1.51305425,108620.0,108610.0,0.41092881]
[1751251338585,1.51305425,108620.0,108610.0,0.20943993]
[1751251338881,1.51305425,108620.0,108610.0,0.41092881]
[1751251342985,1.51241425,108620.0,108610.0,0.41092881]
[1751251347580,0.07465402,108650.0,108640.0,0.1472249]
[1751251347884,0.00062936,108650.0,108640.0,0.92607424]
[1751251348084,0.00062936,108650.0,108640.0,1.02107424]
[1751251348274,0.00062936,108650.0,108640.0,0.66027424]
[1751251348675,0.00362936,108650.0,108640.0,0.66027424]
[1751251348884,0.16248936,108650.0,108640.0,0.66027424]
[1751251349186,0.20058936,108650.0,108640.0,0.66027424]
[1751251350389,0.40207824,108650.0,108640.0,0.19419648]
[1751251350583,0.43467824,108650.0,108640.0,0.39568536]
[1751251351382,0.44344142,108650.0,108640.0,0.59717424]
[1751251351578,0.44344142,108650.0,108640.0,0.19419648]
[1751251351776,0.44344142,108650.0,108640.0,0.39568536]
[1751251352589,0.44344142,108650.0,108640.0,0.59717424]
[1751251353887,0.24195254,108650.0,108640.0,0.59717424]
[1751251354089,0.44344142,108650.0,108640.0,0.59717424]